fUSD/lending_fUSD_20251023
["ID","MTS","AMOUNT","RATE_DAILY","PERIOD"]
[392169788,1761229838224,-2113.05162677,0.0004,120]
[392169789,1761229838238,-2886.94837323,0.0004,120]
[392169790,1761229838248,-168.0,0.00040077,2]
[392169791,1761229838257,-168.0,0.00040462,2]
[392169792,1761229838266,-292.62976687,0.00040499,31]
[392169793,1761229838276,-1198.66142288,0.000406,14]
[392169797,1761229840072,-16236.28833368,0.000406,14]
[392169798,1761229840082,-150.52,0.00040608,2]
[392169799,1761229840092,-212.59045439,0.00040629,120]
[392169800,1761229840101,-160.17732801,0.00040767,5]
[392169801,1761229840111,-501.72165447,0.00040767,5]
[392169802,1761229840121,-160.177328,0.00040767,5]
[392169803,1761229840130,-160.06477046,0.00040767,5]
[392169804,1761229840140,-500.0,0.00040767,5]
[392169805,1761229840152,-160.177328,0.00040767,5]
[392169806,1761229840162,-159.983392,0.00040767,5]
[392169807,1761229840172,-1750.0,0.000408,2]
[392169808,1761229840182,-1853.87392768,0.0004099,3]
[392169809,1761229840192,-50000.0,0.00041,14]
[392169810,1761229840202,-500.0,0.00041025,5]
[392169811,1761229840211,-500.0,0.00041041,2]
[392169812,1761229840221,-1390.40544576,0.00041086,3]
[392169813,1761229840230,-150.99,0.00041096,30]
[392169814,1761229840240,-770.71,0.00041096,2]
[392169815,1761229840250,-499.99,0.00041096,2]
[392169816,1761229840259,-4759.87,0.00041096,2]
[392169817,1761229840269,-93078.12,0.00041096,2]
[392169818,1761229840279,-9999.99,0.00041096,2]
[392169819,1761229840288,-200.0,0.00041096,20]
[392169820,1761229840298,-275.14,0.00041131,120]
[392169821,1761229840307,-276.27287463,0.00041187,10]
[392169822,1761229840316,-589.7,0.00041297,120]
[392169823,1761229840326,-282.94741548,0.00041315,10]
[392169824,1761229840335,-500.0,0.00041534,2]
[392169825,1761229840347,-443.7,0.00041561,2]
[392169826,1761229840356,-156.71932632,0.00041573,10]
[392169827,1761229840366,-500.0,0.00041671,2]
[392169828,1761229840376,-690.37712373,0.0004199,3]
[392169829,1761229840386,-50000.0,0.00042,14]
[392169830,1761229840395,-193.784814,0.00042,30]
[392169831,1761229840405,-193.784814,0.00042,30]
[392169832,1761229840415,-193.784814,0.00042,30]
[392169833,1761229840425,-193.784814,0.00042,30]
[392169834,1761229840434,-200.0,0.00042684,2]
[392169835,1761229840443,-443.7,0.00042684,2]
[392169836,1761229840453,-500.0,0.0004274,2]
[392169837,1761229840468,-157.53731326,0.000429,15]
[392169838,1761229840478,-274.71,0.00042903,14]
[392169839,1761229840487,-690.37712373,0.0004299,3]
[392169840,1761229840497,-50000.0,0.00043,14]
[392169841,1761229840506,-196.251788,0.00043,120]
[392169842,1761229840516,-196.251788,0.00043,120]
[392169843,1761229840526,-196.251788,0.00043,120]
[392169844,1761229840537,-196.251788,0.00043,120]
[392169845,1761229840547,-212.59045439,0.00043067,120]
[392169846,1761229840557,-165.72,0.00043531,2]
[392169847,1761229840569,-1000.0,0.00043561,120]
[392169848,1761229840579,-502.5301,0.00043635,2]
[392169849,1761229840589,-1000.0,0.00043835,120]
[392169850,1761229840601,-500.0,0.00043835,120]
[392169851,1761229840617,-500.0,0.00043835,120]
[392169852,1761229840626,-500.0,0.00043835,120]
[392169853,1761229840636,-500.0,0.00043835,120]
[392169854,1761229840647,-500.0,0.00043835,120]
[392169855,1761229840656,-500.0,0.00043835,120]
[392169856,1761229840666,-500.0,0.00043835,120]
[392169857,1761229840676,-500.0,0.00043835,120]
[392169858,1761229840685,-500.0,0.00043835,120]
[392169859,1761229840695,-2051.0,0.00043855,2]
[392169860,1761229840705,-3486.0,0.00043855,2]
[392169861,1761229840715,-6537.0,0.00043855,2]
[392169862,1761229840724,-577.029,0.00043855,2]
[392169863,1761229840733,-500.0,0.00043933,2]
[392169864,1761229840743,-500.0,0.00043933,15]
[392169865,1761229840752,-500.0,0.00043988,2]
[392169866,1761229840763,-500.0,0.00043988,15]
[392169867,1761229840773,-1380.75424746,0.0004399,3]
[392169868,1761229840782,-50000.0,0.00044,14]
[392169869,1761229840792,-500.0,0.00044043,2]
[392169870,1761229840802,-500.0,0.00044043,15]
[392169871,1761229840812,-505.29419297,0.00044097,2]
[392169872,1761229840822,-500.0,0.00044097,15]
[392169873,1761229840831,-500.0,0.00044152,15]
[392169874,1761229840841,-500.0,0.00044207,15]
[392169875,1761229840850,-500.0,0.00044262,15]
[392169876,1761229840859,-202.26449881,0.00044317,15]
[392169877,1761229840870,-1750.0,0.000445,2]
[392169878,1761229840880,-1003.0,0.000445,7]
[392169879,1761229840889,-1304.97341,0.0004455,23]
[392169880,1761229840899,-487.15068078,0.00044565,15]
[392169881,1761229840909,-5558.0520097,0.00044578,2]
[392169882,1761229840918,-6324.9870534,0.00044578,2]
[392169883,1761229840928,-1304.97341,0.0004465,24]
[392169884,1761229840938,-1000.0,0.00044746,14]
[392169885,1761229840948,-500.0,0.00044767,30]
[392169886,1761229840957,-1304.97342,0.0004478,25]
[392169887,1761229840967,-476.23156132,0.00044799,120]
[392169888,1761229840976,-1000.0,0.00044799,14]
[392169889,1761229840986,-2023.0,0.000448,7]
[392169890,1761229840995,-301.0,0.000448,30]
[392169891,1761229841005,-443.0,0.000448,30]
[392169892,1761229841015,-690.37712373,0.00044859,3]
[392169893,1761229841025,-500.0,0.00044868,2]
[392169894,1761229841035,-5000.0,0.00044869,120]
[392169895,1761229841044,-690.37712373,0.00044879,3]
[392169896,1761229841054,-500.0,0.00044888,120]
[392169897,1761229841064,-603.48360226,0.00044888,120]
[392169898,1761229841074,-500.0,0.00044888,120]
[392169899,1761229841083,-500.0,0.00044888,120]
[392169900,1761229841093,-563.63,0.00044888,120]
[392169901,1761229841103,-690.37712373,0.00044889,3]
[392169902,1761229841113,-500.0,0.00044897,120]
[392169903,1761229841123,-500.0,0.00044897,120]
[392169904,1761229841133,-456.32934925,0.00044897,2]
[392169905,1761229841143,-500.0,0.00044897,120]
[392169906,1761229841153,-500.0,0.00044897,120]
[392169907,1761229841163,-500.0,0.00044897,30]
[392169908,1761229841173,-500.0,0.00044898,120]
[392169909,1761229841182,-500.0,0.00044898,120]
[392169910,1761229841192,-500.0,0.00044898,120]
[392169911,1761229841202,-500.0,0.00044898,120]
[392169912,1761229841211,-394.0,0.00044898,120]
[392169913,1761229841221,-500.0,0.00044898,120]
[392169914,1761229841231,-500.0,0.00044898,120]
[392169915,1761229841240,-569.12,0.00044898,2]
[392169916,1761229841251,-500.0,0.00044898,120]
[392169917,1761229841260,-612.34,0.00044899,2]
[392169918,1761229841270,-1373.581,0.00044899,2]
[392169919,1761229841279,-1600.782,0.00044899,2]
[392169920,1761229841289,-818.0,0.00044899,2]
[392169921,1761229841298,-1267.0,0.00044899,2]
[392169922,1761229841307,-903.0,0.00044899,2]
[392169923,1761229841325,-2549.0,0.00044899,2]
[392169924,1761229841335,-1184.0,0.00044899,2]
[392169925,1761229841345,-156.559285,0.00044899,120]
[392169926,1761229841355,-1900.0,0.00044899,30]
[392169927,1761229841365,-345.5166,0.000449,120]
[392169928,1761229841375,-183.3,0.000449,51]
[392169929,1761229841384,-1200.82,0.00044904,30]
[392169930,1761229841394,-487.15068078,0.0004491,15]
[392169931,1761229841404,-2734.64933577,0.0004491,2]
[392169932,1761229841413,-10816.6366239,0.00044916,2]
[392169933,1761229841422,-196.251788,0.00044916,120]
[392169934,1761229841431,-196.251788,0.00044916,120]
[392169935,1761229841441,-196.251788,0.00044916,120]
[392169936,1761229841450,-196.251788,0.00044916,120]
[392169937,1761229841459,-193.784814,0.00044916,30]
[392169938,1761229841469,-193.784814,0.00044916,30]
[392169939,1761229841478,-193.784814,0.00044916,30]
[392169940,1761229841488,-193.784814,0.00044916,30]
[392169941,1761229841497,-690.37712373,0.00044925,3]
[392169942,1761229841507,-2734.64933577,0.0004494,2]
[392169943,1761229841517,-500.0,0.00044958,120]
[392169944,1761229841526,-500.0,0.00044958,120]
[392169945,1761229841539,-500.0,0.00044958,120]
[392169946,1761229841677,-563.63,0.00044958,120]
[392169947,1761229841689,-9348.0,0.00044959,120]
[392169948,1761229841702,-690.37712373,0.00044966,3]
[392169949,1761229841713,-248.07604333,0.00044969,120]
[392169950,1761229841724,-500.0,0.00044969,120]
[392169951,1761229841733,-500.0,0.00044969,120]
[392169952,1761229841743,-500.0,0.00044969,120]
[392169953,1761229841752,-500.0,0.00044969,30]
[392169954,1761229841762,-500.0,0.00044969,120]
[392169955,1761229841771,-500.0,0.00044969,120]
[392169956,1761229841781,-500.0,0.00044969,120]
[392169957,1761229841790,-500.0,0.00044969,120]
[392169958,1761229841800,-500.0,0.00044969,30]
[392169959,1761229841810,-500.0,0.00044969,120]
[392169960,1761229841820,-500.0,0.00044969,120]
[392169961,1761229841830,-500.0,0.00044969,120]
[392169962,1761229841839,-500.0,0.00044969,120]
[392169963,1761229841848,-500.0,0.00044969,120]
[392169964,1761229841857,-500.0,0.00044969,120]
[392169965,1761229841866,-500.0,0.00044969,60]
[392169966,1761229841876,-500.0,0.00044969,120]
[392169967,1761229841885,-500.0,0.00044969,120]
[392169968,1761229841894,-500.0,0.00044969,120]
[392169969,1761229841903,-2734.64933577,0.0004497,2]
[392169970,1761229841913,-500.0,0.00044972,120]
[392169971,1761229841923,-500.0,0.00044972,30]
[392169972,1761229841932,-502.7281344,0.00044973,10]
[392169973,1761229841943,-500.0,0.00044979,120]
[392169974,1761229841952,-500.0,0.00044979,120]
[392169975,1761229841962,-500.0,0.00044979,120]
[392169976,1761229841972,-500.0,0.00044979,120]
[392169977,1761229841981,-500.0,0.00044979,120]
[392169978,1761229841991,-500.0,0.00044979,120]
[392169979,1761229842001,-500.0,0.00044979,120]
[392169980,1761229842010,-500.0,0.00044979,120]
[392169981,1761229842019,-2071.13137119,0.0004498,3]
[392169982,1761229842030,-2071.13137119,0.0004498,3]
[392169983,1761229842038,-2904.34349174,0.00044986,120]
[392169984,1761229842064,-1541.65650826,0.00044986,120]
[392169985,1761229842074,-150.00000001,0.00044986,30]
[392169986,1761229842084,-150.0,0.00044986,30]
[392169987,1761229842094,-240.3713252,0.00044986,30]
[392169988,1761229842103,-150.00000001,0.00044986,30]
[392169989,1761229842113,-150.0,0.00044986,30]
[392169990,1761229842123,-500.0,0.00044989,120]
[392169991,1761229842133,-500.0,0.00044989,120]
[392169992,1761229842142,-500.0,0.00044989,120]
[392169993,1761229842153,-500.0,0.00044989,120]
[392169994,1761229842162,-563.63,0.00044989,120]
[392169995,1761229842172,-151.0,0.0004499,120]
[392169996,1761229842182,-196.251788,0.0004499,120]
[392169997,1761229842191,-196.251788,0.0004499,120]
[392169998,1761229842201,-196.251788,0.0004499,120]
[392169999,1761229842211,-196.251788,0.0004499,120]
[392170000,1761229842221,-150.33,0.0004499,2]
[392170001,1761229842231,-150.33,0.0004499,2]
[392170002,1761229842240,-150.33,0.0004499,2]
[392170003,1761229842250,-150.33,0.0004499,2]
[392170004,1761229842259,-150.33,0.0004499,2]
[392170005,1761229842269,-150.33,0.0004499,2]
[392170006,1761229842278,-150.33,0.0004499,2]
[392170007,1761229842287,-156.44405583,0.0004499,7]
[392170008,1761229842296,-156.44405583,0.0004499,7]
[392170009,1761229842306,-1425.0,0.00044991,2]
[392170010,1761229842315,-500.0,0.00044998,120]
[392170011,1761229842326,-500.0,0.00044998,120]
[392170012,1761229842337,-500.0,0.00044998,120]
[392170013,1761229842347,-563.63,0.00044998,120]
[392170014,1761229842356,-1177.65810365,0.00044999,60]
[392170015,1761229842366,-500.0,0.00044999,120]
[392170016,1761229842375,-500.0,0.00044999,120]
[392170017,1761229842384,-382.43061893,0.00044999,120]
[392170018,1761229842394,-500.0,0.00044999,120]
[392170019,1761229842404,-500.0,0.00044999,120]
[392170020,1761229842413,-500.0,0.00044999,120]
[392170021,1761229842422,-576.74937579,0.00044999,120]
[392170022,1761229842431,-500.0,0.00044999,120]
[392170023,1761229842440,-500.0,0.00044999,120]
[392170024,1761229842450,-500.0,0.00044999,120]
[392170025,1761229842459,-500.0,0.00044999,120]
[392170026,1761229842468,-396.49965963,0.00044999,120]
[392170028,1761229842800,-1.6e-07,0.00044999,120]
[392170032,1761229843143,-2.58340504,0.00044999,120]
[392170033,1761229843213,-168.0,0.00040815,2]
[392170034,1761229843222,-2357.994,0.00043855,2]
[392170035,1761229843232,-100.91693517,0.00044999,120]
[392170036,1761229843242,-500.0,0.00044999,120]
[392170037,1761229843251,-500.0,0.00044999,120]
[392170038,1761229843261,-500.0,0.00044999,120]
[392170039,1761229843270,-500.0,0.00044999,120]
[392170040,1761229843279,-500.0,0.00044999,120]
[392170041,1761229843288,-500.0,0.00044999,120]
[392170042,1761229843298,-500.0,0.00044999,120]
[392170043,1761229843307,-500.0,0.00044999,120]
[392170044,1761229843316,-500.0,0.00044999,120]
[392170045,1761229843327,-500.0,0.00044999,120]
[392170046,1761229843337,-500.0,0.00044999,120]
[392170047,1761229843347,-500.0,0.00044999,120]
[392170048,1761229843356,-500.0,0.00044999,120]
[392170049,1761229843366,-500.0,0.00044999,120]
[392170050,1761229843375,-500.0,0.00044999,120]
[392170051,1761229843385,-500.0,0.00044999,120]
[392170052,1761229843394,-500.0,0.00044999,120]
[392170053,1761229843404,-500.0,0.00044999,120]
[392170054,1761229843413,-500.0,0.00044999,120]
[392170055,1761229843423,-500.0,0.00044999,120]
[392170056,1761229843432,-500.0,0.00044999,120]
[392170057,1761229843441,-500.0,0.00044999,120]
[392170058,1761229843450,-500.0,0.00044999,120]
[392170059,1761229843459,-500.0,0.00044999,120]
[392170060,1761229843468,-500.0,0.00044999,120]
[392170061,1761229843477,-159.42834038,0.00044999,120]
[392170062,1761229843486,-500.0,0.00044999,120]
[392170063,1761229843495,-500.0,0.00044999,120]
[392170064,1761229843505,-500.0,0.00044999,120]
[392170065,1761229843514,-564.54437571,0.00044999,120]
[392170066,1761229843523,-1304.97341,0.00044999,26]
[392170067,1761229843535,-1304.97342,0.00044999,26]
[392170068,1761229843545,-1304.97341,0.00044999,26]
[392170069,1761229843555,-999.0,0.00044999,120]
[392170070,1761229843565,-500.0,0.00044999,120]
[392170071,1761229843575,-500.0,0.00044999,120]
[392170072,1761229843584,-500.0,0.00044999,120]
[392170073,1761229843593,-500.0,0.00044999,120]
[392170074,1761229843602,-500.0,0.00044999,120]
[392170075,1761229843613,-500.0,0.00044999,120]
[392170076,1761229843623,-500.0,0.00044999,120]
[392170077,1761229843632,-500.0,0.00044999,120]
[392170078,1761229843642,-500.0,0.00044999,120]
[392170079,1761229843651,-500.0,0.00044999,120]
[392170080,1761229843661,-500.0,0.00044999,120]
[392170081,1761229843671,-500.0,0.00044999,120]
[392170082,1761229843680,-500.0,0.00044999,120]
[392170083,1761229843690,-500.0,0.00044999,120]
[392170084,1761229843700,-500.0,0.00044999,120]
[392170085,1761229843710,-528.00875164,0.00044999,120]
[392170086,1761229843720,-500.0,0.00044999,120]
[392170087,1761229843730,-500.0,0.00044999,120]
[392170088,1761229843740,-500.0,0.00044999,120]
[392170089,1761229843750,-500.0,0.00044999,120]
[392170090,1761229843760,-500.0,0.00044999,120]
[392170091,1761229843770,-500.0,0.00044999,120]
[392170092,1761229843780,-500.0,0.00044999,120]
[392170093,1761229843789,-500.0,0.00044999,120]
[392170094,1761229843799,-500.73689132,0.00044999,120]
[392170095,1761229843809,-500.0,0.00044999,30]
[392170096,1761229843819,-500.0,0.00044999,30]
[392170097,1761229843829,-500.0,0.00044999,30]
[392170098,1761229843840,-500.0,0.00044999,30]
[392170099,1761229843849,-500.0,0.00044999,30]
[392170100,1761229843859,-500.0,0.00044999,30]
[392170101,1761229843868,-500.0,0.00044999,30]
[392170102,1761229843878,-500.0,0.00044999,30]
[392170103,1761229843887,-500.0,0.00044999,30]
[392170104,1761229843897,-500.0,0.00044999,30]
[392170105,1761229843907,-500.0,0.00044999,30]
[392170106,1761229843916,-500.0,0.00044999,30]
[392170107,1761229843927,-349.44,0.00044999,30]
[392170108,1761229843937,-500.0,0.00044999,120]
[392170109,1761229843946,-500.0,0.00044999,120]
[392170110,1761229843956,-500.0,0.00044999,120]
[392170111,1761229843966,-500.0,0.00044999,120]
[392170112,1761229843975,-500.0,0.00044999,120]
[392170113,1761229843985,-500.0,0.00044999,120]
[392170114,1761229843995,-500.0,0.00044999,120]
[392170115,1761229844005,-500.0,0.00044999,120]
[392170116,1761229844014,-555.89068645,0.00044999,120]
[392170117,1761229844024,-500.0,0.00044999,120]
[392170118,1761229844033,-500.0,0.00044999,120]
[392170119,1761229844043,-500.0,0.00044999,120]
[392170120,1761229844052,-500.0,0.00044999,120]
[392170121,1761229844062,-500.0,0.00044999,120]
[392170122,1761229844073,-303.35793869,0.00044999,120]
[392170123,1761229844083,-196.251788,0.00044999,120]
[392170124,1761229844093,-196.251788,0.00044999,120]
[392170125,1761229844102,-196.251788,0.00044999,120]
[392170126,1761229844111,-196.251788,0.00044999,120]
[392170127,1761229844121,-500.0,0.00044999,120]
[392170128,1761229844131,-500.0,0.00044999,120]
[392170129,1761229844141,-500.0,0.00044999,120]
[392170130,1761229844151,-500.0,0.00044999,120]
[392170131,1761229844161,-500.0,0.00044999,120]
[392170132,1761229844171,-412.78484866,0.00044999,120]
[392170133,1761229844181,-500.0,0.00044999,120]
[392170134,1761229844191,-500.0,0.00044999,120]
[392170135,1761229844202,-500.0,0.00044999,120]
[392170136,1761229844211,-500.0,0.00044999,120]
[392170137,1761229844221,-500.0,0.00044999,120]
[392170138,1761229844231,-500.0,0.00044999,120]
[392170139,1761229844240,-500.0,0.00044999,120]
[392170140,1761229844251,-500.0,0.00044999,120]
[392170141,1761229844261,-500.0,0.00044999,120]
[392170142,1761229844272,-500.0,0.00044999,120]
[392170143,1761229844282,-311.04,0.00044999,120]
[392170144,1761229844291,-563.63,0.00044999,120]
[392170145,1761229844301,-563.63,0.00044999,120]
[392170146,1761229844312,-563.63,0.00044999,120]
[392170147,1761229844322,-563.63,0.00044999,120]
[392170148,1761229844331,-563.63,0.00044999,120]
[392170149,1761229844341,-563.63,0.00044999,120]
[392170150,1761229844351,-563.63,0.00044999,120]
[392170151,1761229844361,-563.63,0.00044999,120]
[392170152,1761229844370,-563.63,0.00044999,120]
[392170153,1761229844380,-563.63,0.00044999,120]
[392170154,1761229844390,-563.63,0.00044999,120]
[392170155,1761229844400,-563.63,0.00044999,120]
[392170156,1761229844411,-563.63,0.00044999,120]
[392170157,1761229844421,-50000.0,0.00045,19]
[392170158,1761229844431,-50000.0,0.00045,20]
[392170159,1761229844441,-42144.80860501,0.00045,18]
[392170160,1761229844451,-11225.2983323,0.00045,120]
[392170162,1761229846230,-168.0,0.00040491,2]
[392170163,1761229846240,-2251.0444387,0.00045,120]
[392170182,1761230043294,300.70393383,0.00026178,120]
[392170183,1761230045068,195.0,0.00026178,120]
[392170184,1761230047091,226.83493539,0.00026178,120]
[392170186,1761230103469,1139.92213095,0.00024931,120]
[392170187,1761230105616,195.0,0.00024931,120]
[392170188,1761230105716,195.0,0.00025823,120]
[392170303,1761230829086,-3130.96553483,0.00022984,2]
[392170305,1761230843455,-160.00879491,0.00022984,2]
[392170308,1761230885918,-338.42948133,0.00022869,2]
[392170309,1761230886034,-338.42948133,0.00022869,2]
[392170310,1761230886155,-516.3007,0.00022869,2]
[392170316,1761230945095,-158.03331336,0.00022784,43]
[392170317,1761230945116,-4485.31506543,0.00022869,2]
[392170318,1761230954104,-454.6048155,0.00022884,2]
[392170319,1761230954125,-454.60481548,0.00022982,2]
[392170320,1761230954144,-199.15013408,0.00022984,2]
[392170321,1761230954165,-300.0,0.00022998,2]
[392170322,1761230954185,-4000.0,0.00022999,2]
[392170323,1761230954212,-416.89903315,0.00023013,2]
[392170324,1761230954233,-1200.0,0.00023041,2]
[392170325,1761230954254,-508.66748208,0.00023041,2]
[392170326,1761230954276,-500.0,0.00023041,2]
[392170327,1761230954298,-500.0,0.00023041,2]
[392170328,1761230954319,-500.0,0.00023041,2]
[392170329,1761230954341,-500.0,0.00023041,2]
[392170330,1761230954364,-501.37675135,0.00023041,2]
[392170331,1761230954386,-500.0,0.00023041,2]
[392170332,1761230954416,-501.37675135,0.00023041,2]
[392170333,1761230954441,-252.0941242,0.00023041,2]
[392170334,1761230954461,-500.0,0.00023041,2]
[392170335,1761230954481,-237.43403622,0.00023041,2]
[392170336,1761230954504,-501.37675135,0.00023041,2]
[392170337,1761230954526,-474.70578754,0.00023041,2]
[392170338,1761230954549,-501.37675135,0.00023041,2]
[392170339,1761230954573,-501.37675135,0.00023041,2]
[392170340,1761230954595,-501.37675135,0.00023041,2]
[392170341,1761230954617,-501.37675135,0.00023041,2]
[392170342,1761230954638,-501.37675135,0.00023041,2]
[392170343,1761230954662,-501.37675135,0.00023041,2]
[392170344,1761230954688,-501.37675135,0.00023041,2]
[392170345,1761230954711,-501.37675135,0.00023041,2]
[392170346,1761230954734,-501.37675135,0.00023041,2]
[392170347,1761230954757,-501.37675135,0.00023041,2]
[392170348,1761230954780,-501.37675135,0.00023041,2]
[392170349,1761230954802,-501.37675135,0.00023041,2]
[392170350,1761230954824,-501.37675135,0.00023041,2]
[392170351,1761230954850,-501.37675135,0.00023041,2]
[392170352,1761230954872,-501.37675135,0.00023041,2]
[392170353,1761230954895,-501.37675135,0.00023041,2]
[392170354,1761230954920,-501.37675135,0.00023041,2]
[392170355,1761230954942,-501.37675135,0.00023041,2]
[392170356,1761230954965,-501.37675135,0.00023041,2]
[392170357,1761230954988,-501.37675135,0.00023041,2]
[392170358,1761230955011,-501.37675135,0.00023041,2]
[392170359,1761230955034,-501.37675135,0.00023041,2]
[392170360,1761230955056,-501.37675135,0.00023041,2]
[392170361,1761230955078,-501.37675135,0.00023041,2]
[392170362,1761230955102,-501.37675135,0.00023041,2]
[392170363,1761230955125,-501.37675135,0.00023041,2]
[392170364,1761230955147,-501.37675135,0.00023041,2]
[392170365,1761230955170,-501.37675135,0.00023041,2]
[392170366,1761230955194,-501.37675135,0.00023041,2]
[392170367,1761230955216,-501.37675135,0.00023041,2]
[392170368,1761230955239,-501.37675135,0.00023041,2]
[392170369,1761230955264,-501.37675135,0.00023041,2]
[392170370,1761230955287,-501.37675135,0.00023041,2]
[392170371,1761230955310,-501.37675135,0.00023041,2]
[392170372,1761230955334,-167.5839518,0.00023041,2]
[392170373,1761230955429,-333.79279955,0.00023041,2]
[392170374,1761230955453,-501.37675135,0.00023041,2]
[392170375,1761230955476,-501.37675135,0.00023041,2]
[392170376,1761230955500,-301.83847375,0.00023041,2]
[392170382,1761230961090,-727.0815412,0.00022925,2]
[392170383,1761230965112,-670.6653878,0.00022925,2]
[392170384,1761230965134,-5833.04611076,0.00022941,2]
[392170385,1761230965158,-199.5382776,0.00023041,2]
[392170386,1761230965182,-501.37675135,0.00023041,2]
[392170387,1761230965205,-501.37675135,0.00023041,2]
[392170388,1761230965229,-501.37675135,0.00023041,2]
[392170389,1761230965253,-501.37675135,0.00023041,2]
[392170390,1761230965277,-501.37675135,0.00023041,2]
[392170391,1761230965305,-501.37675135,0.00023041,2]
[392170392,1761230965329,-501.37675135,0.00023041,2]
[392170393,1761230965351,-500.0,0.00023041,2]
[392170394,1761230965373,-500.0,0.00023041,2]
[392170395,1761230965395,-500.0,0.00023041,2]
[392170396,1761230965418,-500.0,0.00023041,2]
[392170397,1761230965441,-500.0,0.00023041,2]
[392170398,1761230965464,-500.0,0.00023041,2]
[392170399,1761230965487,-500.0,0.00023041,2]
[392170400,1761230965511,-500.0,0.00023041,2]
[392170401,1761230965539,-500.0,0.00023041,2]
[392170402,1761230965561,-500.0,0.00023041,2]
[392170403,1761230965584,-500.0,0.00023041,2]
[392170404,1761230965606,-500.0,0.00023041,2]
[392170405,1761230965628,-500.0,0.00023041,2]
[392170406,1761230965649,-500.0,0.00023041,2]
[392170407,1761230965671,-500.0,0.00023041,2]
[392170408,1761230965697,-500.0,0.00023041,2]
[392170409,1761230965719,-500.0,0.00023041,2]
[392170410,1761230965741,-500.0,0.00023041,2]
[392170411,1761230965766,-500.0,0.00023041,2]
[392170412,1761230965788,-500.0,0.00023041,2]
[392170413,1761230965810,-500.0,0.00023041,2]
[392170414,1761230965834,-500.0,0.00023041,2]
[392170415,1761230966017,-500.0,0.00023041,2]
[392170416,1761230966046,-500.0,0.00023041,2]
[392170417,1761230966070,-500.0,0.00023041,2]
[392170418,1761230966092,-198.70054439,0.00023041,2]
[392170419,1761230968486,-195.29545837,0.00023041,2]
[392170433,1761231032146,-300.0,0.0002304,2]
[392170434,1761231032156,-29.772748,0.0002304,2]
[392170435,1761231032230,-270.227252,0.0002304,2]
[392170436,1761231032240,-1200.0,0.0002304,2]
[392170437,1761231032249,-300.0,0.0002304,2]
[392170438,1761231032259,-106.00399724,0.00023041,2]
[392170439,1761231032268,-500.0,0.00023041,2]
[392170440,1761231032278,-500.0,0.00023041,2]
[392170441,1761231032287,-70.82570316,0.00023041,2]
[392170442,1761231032298,-283.69365069,0.00023041,2]
[392170443,1761231032307,-500.0,0.00023041,2]
[392170444,1761231032317,-500.0,0.00023041,2]
[392170445,1761231032328,-500.0,0.00023041,2]
[392170446,1761231032338,-500.0,0.00023041,2]
[392170447,1761231032347,-500.0,0.00023041,2]
[392170448,1761231032357,-500.0,0.00023041,2]
[392170449,1761231032366,-500.0,0.00023041,2]
[392170450,1761231032375,-500.0,0.00023041,2]
[392170451,1761231032385,-500.0,0.00023041,2]
[392170452,1761231032395,-496.36298383,0.00023041,2]
[392170453,1761231032405,-500.0,0.00023041,2]
[392170454,1761231032414,-2500.0,0.00023042,2]